lending/lending_fUSD_20250224
["ID","MTS","AMOUNT","RATE_DAILY","PERIOD"]
[354243086,1740361841264,-653.85,0.00016438,2]
[354243088,1740361841273,-191.79794142,0.00016438,2]
[354243089,1740361841282,-501.63518958,0.00016438,2]
[354243092,1740361841291,-501.72997162,0.00016438,2]
[354243093,1740361841301,-500.0,0.00016438,2]
[354243095,1740361841310,-500.0,0.00016438,2]
[354243097,1740361841319,-550.98,0.00016438,2]
[354243099,1740361841327,-500.0,0.00016438,2]
[354243101,1740361841336,-760.13,0.00016438,2]
[354243103,1740361841346,-501.63246933,0.00016438,2]
[354243105,1740361841355,-501.48179301,0.00016438,2]
[354243107,1740361841364,-586.22,0.00016438,2]
[354243109,1740361841373,-502.89677708,0.00016438,2]
[354243111,1740361841382,-516.51,0.00016438,2]
[354243113,1740361841391,-501.04555786,0.00016438,2]
[354243115,1740361841401,-500.0,0.00016438,2]
[354243117,1740361841410,-502.11183536,0.00016438,2]
[354243119,1740361841419,-501.24850636,0.00016438,2]
[354243121,1740361841428,-1022.82,0.00016438,2]
[354243123,1740361841437,-825.96,0.00016438,2]
[354243125,1740361841448,-902.08,0.00016438,2]
[354243127,1740361841457,-681.93,0.00016438,2]
[354243129,1740361841466,-501.26556403,0.00016438,2]
[354243131,1740361841475,-500.0,0.00016438,2]
[354243133,1740361841484,-501.20866947,0.00016438,2]
[354243135,1740361841495,-502.27973778,0.00016438,2]
[354243137,1740361841504,-500.0,0.00016438,2]
[354243138,1740361841513,-503.80108417,0.00016438,2]
[354243139,1740361841522,-522.82,0.00016438,2]
[354243140,1740361841532,-538.02,0.00016438,2]
[354243141,1740361841541,-607.45,0.00016438,2]
[354243142,1740361841550,-500.0,0.00016438,2]
[354243143,1740361841559,-501.36016016,0.00016438,2]
[354243144,1740361841568,-501.5209576,0.00016438,2]
[354243145,1740361841577,-500.0,0.00016438,2]
[354243146,1740361841586,-501.68573397,0.00016438,2]
[354243147,1740361841595,-500.81115441,0.00016438,2]
[354243148,1740361841604,-500.0,0.00016438,2]
[354243149,1740361841613,-955.18,0.00016438,2]
[354243150,1740361841622,-500.0,0.00016438,2]
[354243151,1740361841631,-504.0222957,0.00016438,2]
[354243152,1740361841640,-503.00022766,0.00016438,2]
[354243153,1740361841650,-500.0,0.00016438,2]
[354243154,1740361841659,-501.50356638,0.00016438,2]
[354243155,1740361841667,-501.53650214,0.00016438,2]
[354243156,1740361841676,-501.51828563,0.00016438,2]
[354243157,1740361841685,-927.52,0.00016438,2]
[354243158,1740361841694,-500.0,0.00016438,2]
[354243159,1740361841703,-752.45,0.00016438,2]
[354243160,1740361841712,-630.87,0.00016438,2]
[354243161,1740361841721,-720.02,0.00016438,2]
[354243162,1740361841730,-501.49419559,0.00016438,2]
[354243163,1740361841739,-636.77,0.00016438,2]
[354243164,1740361841748,-193.13871923,0.00016438,2]
[354243165,1740361841757,-578.93,0.00016438,2]
[354243166,1740361841766,-501.42940264,0.00016438,2]
[354243167,1740361841775,-585.84,0.00016438,2]
[354243168,1740361841784,-242.694834,0.00016438,2]
[354243169,1740361841793,-500.0,0.00016438,2]
[354243170,1740361841802,-500.0,0.00016438,2]
[354243171,1740361841811,-1180.69,0.00016438,2]
[354243173,1740361841820,-501.41830532,0.00016438,2]
[354243175,1740361841829,-604.41,0.00016438,2]
[354243177,1740361841838,-501.42943348,0.00016438,2]
[354243179,1740361841848,-500.0,0.00016438,2]
[354243181,1740361841856,-609.42,0.00016438,2]
[354243183,1740361841865,-153.85851863,0.00016438,2]
[354243185,1740361841874,-501.68093057,0.00016438,2]
[354243187,1740361841884,-501.20692442,0.00016438,2]
[354243188,1740361841893,-903.8,0.00016438,2]
[354243189,1740361841902,-500.0,0.00016438,2]
[354243190,1740361841911,-885.77,0.00016438,2]
[354243191,1740361841920,-501.68523143,0.00016438,2]
[354243192,1740361841929,-694.75,0.00016438,2]
[354243193,1740361841939,-500.0,0.00016438,2]
[354243194,1740361841948,-501.21825318,0.00016438,2]
[354243195,1740361841957,-500.0,0.00016438,2]
[354243207,1740361842112,-500.83831704,0.00016438,2]
[354243209,1740361842122,-500.0,0.00016438,2]
[354243211,1740361842132,-1007.39,0.00016438,2]
[354243213,1740361842141,-501.30663134,0.00016438,2]
[354243215,1740361842150,-614.66,0.00016438,2]
[354243217,1740361842159,-574.84,0.00016438,2]
[354243219,1740361842170,-1298.98,0.00016438,2]
[354243221,1740361842180,-227.94954067,0.00016438,2]
[354243223,1740361842189,-500.0,0.00016438,2]
[354243225,1740361842199,-501.28181292,0.00016438,2]
[354243227,1740361842208,-491.85306015,0.00016438,2]
[354243229,1740361842217,-500.62394605,0.00016438,2]
[354243231,1740361842226,-628.47,0.00016438,2]
[354243233,1740361842236,-502.7822014,0.00016438,2]
[354243235,1740361842246,-500.65243764,0.00016438,2]
[354243237,1740361842256,-503.47808403,0.00016438,2]
[354243239,1740361842264,-500.0,0.00016438,2]
[354243241,1740361842273,-681.3,0.00016438,2]
[354243243,1740361842282,-529.49,0.00016438,2]
[354243245,1740361842291,-500.0,0.00016438,2]
[354243247,1740361842300,-505.17065185,0.00016438,2]
[354243249,1740361842309,-500.0,0.00016438,2]
[354243251,1740361842318,-501.57409477,0.00016438,2]
[354243253,1740361842327,-501.69114383,0.00016438,2]
[354243255,1740361842335,-501.24754839,0.00016438,2]
[354243257,1740361842345,-506.23883187,0.00016438,2]
[354243259,1740361842354,-500.55505945,0.00016438,2]
[354243261,1740361842363,-507.02,0.00016438,2]
[354243263,1740361842372,-500.0,0.00016438,2]
[354243265,1740361842381,-500.0,0.00016438,2]
[354243267,1740361842390,-500.0,0.00016438,2]
[354243269,1740361842399,-1066.58,0.00016438,2]
[354243271,1740361842408,-398.36029223,0.00016438,2]
[354243273,1740361842417,-500.0,0.00016438,2]
[354243275,1740361842426,-500.0,0.00016438,2]
[354243277,1740361842435,-501.04195916,0.00016438,2]
[354243279,1740361842444,-574.31,0.00016438,2]
[354243281,1740361842454,-500.0,0.00016438,2]
[354243283,1740361842463,-504.45555293,0.00016438,2]
[354243285,1740361842472,-956.79,0.00016438,2]
[354243287,1740361842481,-583.03,0.00016438,2]
[354243289,1740361842491,-500.0,0.00016438,2]
[354243291,1740361842500,-501.54874241,0.00016438,2]
[354243293,1740361842509,-500.0,0.00016438,2]
[354243295,1740361842518,-846.58,0.00016438,2]
[354243297,1740361842527,-154.19211576,0.00016438,2]
[354243299,1740361842537,-505.59681521,0.00016438,2]
[354243301,1740361842546,-712.98,0.00016438,2]
[354243303,1740361842555,-696.09,0.00016438,2]
[354243305,1740361842567,-546.17671781,0.00016438,2]
[354243307,1740361842577,-507.22,0.00016438,2]
[354243309,1740361842586,-500.0,0.00016438,2]
[354243311,1740361842595,-501.5564872,0.00016438,2]
[354243313,1740361842604,-500.0,0.00016438,2]
[354243315,1740361842614,-500.0,0.00016438,2]
[354243317,1740361842623,-1002.56,0.00016438,2]
[354243319,1740361842632,-509.6410465,0.00016438,2]
[354243322,1740361842642,-500.0,0.00016438,2]
[354243324,1740361842651,-501.17266323,0.00016438,2]
[354243326,1740361842660,-500.0,0.00016438,2]
[354243328,1740361842670,-884.18,0.00016438,2]
[354243330,1740361842679,-502.94963265,0.00016438,2]
[354243332,1740361842688,-501.47590059,0.00016438,2]
[354243334,1740361842698,-500.0,0.00016438,2]
[354243336,1740361842707,-501.50068508,0.00016438,2]
[354243338,1740361842716,-501.46980405,0.00016438,2]
[354243340,1740361842725,-693.37,0.00016438,2]
[354243342,1740361842734,-755.87,0.00016438,2]
[354243344,1740361842744,-953.46,0.00016438,2]
[354243346,1740361842753,-500.0,0.00016438,2]
[354243348,1740361842762,-500.0,0.00016438,2]
[354243349,1740361842771,-684.21,0.00016438,2]
[354243350,1740361842781,-330.37455755,0.00016438,2]
[354243351,1740361842790,-614.87040889,0.00016438,2]
[354243352,1740361842800,-500.0,0.00016438,2]
[354243354,1740361842809,-500.0,0.00016438,2]
[354243356,1740361842819,-501.08753577,0.00016438,2]
[354243357,1740361842828,-500.0,0.00016438,2]
[354243360,1740361842838,-504.95245016,0.00016438,2]
[354243362,1740361842847,-657.21,0.00016438,2]
[354243365,1740361842856,-500.96350678,0.00016438,2]
[354243368,1740361842866,-500.0,0.00016438,2]
[354243370,1740361842875,-500.0,0.00016438,2]
[354243372,1740361842884,-478.7987896,0.00016438,2]
[354243419,1740361843248,-36.9012104,0.00016438,2]
[354243421,1740361843258,-397.81360236,0.00016438,2]
[354243424,1740361843275,-102.18639764,0.00016438,2]
[354243426,1740361843285,-244.26260236,0.00016438,2]
[354243428,1740361843297,-256.76628884,0.00016438,2]
[354243430,1740361843307,-31.58471116,0.00016438,2]
[354243453,1740361843693,-179.50802046,0.00016438,2]
[354243454,1740361843703,-642.6953521,0.00016438,2]
[354243455,1740361843742,-107.2446479,0.00016438,2]
[354243456,1740361843752,-500.0,0.00016438,2]
[354243457,1740361843762,-501.58337592,0.00016438,2]
[354243458,1740361843772,-510.66,0.00016438,2]
[354243459,1740361843782,-628.73,0.00016438,2]
[354243460,1740361843791,-309.08206055,0.00016438,2]
[354243472,1740361846087,-191.47296332,0.00016438,2]
[354243473,1740361846096,-374.24110301,0.00016438,2]
[354243474,1740361846107,-125.75889699,0.00016438,2]
[354243475,1740361846116,-501.48627317,0.00016438,2]
[354243476,1740361846126,-504.75368038,0.00016438,2]
[354243477,1740361846135,-500.0,0.00016438,2]
[354243478,1740361846144,-66.3076871,0.00016438,2]
[354243479,1740361846171,-433.6923129,0.00016438,2]
[354243480,1740361846182,-500.86546611,0.00016438,2]
[354243481,1740361846192,-1076.5,0.00016438,2]
[354243482,1740361846201,-598.05,0.00016438,2]
[354243483,1740361846210,-500.0,0.00016438,2]
[354243484,1740361846220,-318.04808727,0.00016438,2]
[354243485,1740361846229,-501.12979082,0.00016438,2]
[354243487,1740361846239,-500.0,0.00016438,2]
[354243489,1740361846249,-500.0,0.00016438,2]
[354243491,1740361846258,-500.0,0.00016438,2]
[354243493,1740361846269,-500.0,0.00016438,2]
[354243495,1740361846278,-513.74051445,0.00016438,2]
[354243497,1740361846289,-500.0,0.00016438,2]
[354243499,1740361846298,-500.0,0.00016438,2]
[354243501,1740361846307,-500.0,0.00016438,2]
[354243503,1740361846316,-346.57313768,0.00016438,2]
[354243505,1740361846326,-500.0,0.00016438,2]
[354243507,1740361846335,-500.0,0.00016438,2]
[354243509,1740361846344,-501.68044063,0.00016438,2]
[354243511,1740361846354,-500.0,0.00016438,2]
[354243513,1740361846363,-945.56,0.00016438,2]
[354243515,1740361846372,-500.0,0.00016438,2]
[354243517,1740361846382,-516.33040222,0.00016438,2]
[354243519,1740361846391,-501.46180722,0.00016438,2]
[354243521,1740361846400,-639.83,0.00016438,2]
[354243523,1740361846409,-1089.01,0.00016438,2]
[354243525,1740361846418,-401.57519295,0.00016438,2]
[354243527,1740361846427,-500.0,0.00016438,2]
[354243529,1740361846437,-855.58,0.00016438,2]
[354243531,1740361846446,-501.83160571,0.00016438,2]
[354243533,1740361846455,-500.0,0.00016438,2]
[354243535,1740361846465,-503.41115005,0.00016438,2]
[354243537,1740361846474,-501.93388076,0.00016438,2]
[354243539,1740361846483,-500.0,0.00016438,2]
[354243541,1740361846493,-500.0,0.00016438,2]
[354243543,1740361846502,-525.3,0.00016438,2]
[354243545,1740361846512,-557.29,0.00016438,2]
[354243547,1740361846521,-501.61353285,0.00016438,2]
[354243549,1740361846530,-783.8,0.00016438,2]
[354243551,1740361846539,-856.04,0.00016438,2]
[354243552,1740361846548,-500.0,0.00016438,2]
[354243553,1740361846557,-500.0,0.00016438,2]
[354243554,1740361846567,-503.48754856,0.00016438,2]
[354243555,1740361846576,-504.43949952,0.00016438,2]
[354243556,1740361846585,-501.56189692,0.00016438,2]
[354243557,1740361846595,-2155.32,0.00016438,2]
[354243558,1740361846604,-1300.97,0.00016438,2]
[354243559,1740361846614,-501.35481013,0.00016438,2]
[354243560,1740361846623,-500.0,0.00016438,2]
[354243561,1740361846633,-500.0,0.00016438,2]
[354243562,1740361846642,-501.5069255,0.00016438,2]
[354243563,1740361846651,-500.0,0.00016438,2]
[354243564,1740361846660,-503.67331827,0.00016438,2]
[354243565,1740361846670,-502.01466768,0.00016438,2]
[354243566,1740361846679,-494.0,0.00016438,2]
[354243567,1740361846689,-639.51,0.00016438,2]
[354243568,1740361846700,-1277.36,0.00016438,2]
[354243569,1740361846709,-500.0,0.00016438,2]
[354243570,1740361846718,-500.0,0.00016438,2]
[354243571,1740361846727,-500.0,0.00016438,2]
[354243572,1740361846737,-633.33,0.00016438,2]
[354243573,1740361846746,-500.0,0.00016438,2]
[354243574,1740361846755,-668.7,0.00016438,2]
[354243575,1740361846764,-500.0,0.00016438,2]
[354243576,1740361846774,-501.54774268,0.00016438,2]
[354243577,1740361846783,-500.0,0.00016438,2]
[354243578,1740361846792,-500.0,0.00016438,2]
[354243579,1740361846801,-503.94926574,0.00016438,2]
[354243580,1740361846810,-334.40261973,0.00016438,2]
[354243581,1740361846819,-500.0,0.00016438,2]
[354243582,1740361846828,-868.26,0.00016438,2]
[354243583,1740361846837,-500.0,0.00016438,2]
[354243584,1740361846846,-504.23044444,0.00016438,2]
[354243585,1740361846855,-501.21162428,0.00016438,2]
[354243586,1740361846864,-501.9731666,0.00016438,2]
[354243587,1740361846873,-510.4,0.00016438,2]
[354243588,1740361846882,-500.0,0.00016438,2]
[354243589,1740361846891,-589.30294475,0.00016438,2]
[354243590,1740361846901,-693.95,0.00016438,2]
[354243591,1740361846910,-627.95,0.00016438,2]
[354243592,1740361846919,-500.0,0.00016438,2]
[354243593,1740361846928,-574.64,0.00016438,2]
[354243594,1740361846937,-676.67,0.00016438,2]
[354243595,1740361846946,-500.0,0.00016438,2]
[354243596,1740361846959,-500.0,0.00016438,2]
[354243597,1740361846968,-1101.25,0.00016438,2]
[354243598,1740361846978,-520.31,0.00016438,2]
[354243599,1740361846987,-500.0,0.00016438,2]
[354243600,1740361846996,-503.16197314,0.00016438,2]
[354243601,1740361847005,-500.0,0.00016438,2]
[354243602,1740361847014,-639.67,0.00016438,2]
[354243603,1740361847024,-500.0,0.00016438,2]
[354243604,1740361847033,-500.0,0.00016438,2]
[354243605,1740361847042,-1339.92,0.00016438,2]
[354243606,1740361847051,-500.0,0.00016438,2]
[354243607,1740361847062,-1427.47,0.00016438,2]
[354243608,1740361847071,-504.25953906,0.00016438,2]
[354243609,1740361847081,-590.25,0.00016438,2]
[354243610,1740361847094,-901.89,0.00016438,2]
[354243611,1740361847104,-500.0,0.00016438,2]
[354243612,1740361847113,-338.07743224,0.00016438,2]
[354243613,1740361847122,-2072.28,0.00016438,2]
[354243614,1740361847131,-505.70786624,0.00016438,2]
[354243615,1740361847140,-500.0,0.00016438,2]
[354243616,1740361847149,-500.0,0.00016438,2]
[354243617,1740361847159,-500.0,0.00016438,2]
[354243618,1740361847168,-500.0,0.00016438,2]
[354243619,1740361847179,-1038.51,0.00016438,2]
[354243620,1740361847189,-504.42881901,0.00016438,2]
[354243621,1740361847199,-500.0,0.00016438,2]
[354243622,1740361847209,-1146.19,0.00016438,2]
[354243623,1740361847219,-505.06898887,0.00016438,2]
[354243624,1740361847228,-641.84,0.00016438,2]
[354243625,1740361847236,-503.87676267,0.00016438,2]
[354243626,1740361847246,-500.0,0.00016438,2]
[354243627,1740361847257,-500.0,0.00016438,2]
[354243628,1740361847266,-500.0,0.00016438,2]
[354243629,1740361847275,-2702.89,0.00016438,2]
[354243630,1740361847284,-500.0,0.00016438,2]
[354243631,1740361847294,-2336.02,0.00016438,2]
[354243632,1740361847303,-500.0,0.00016438,2]
[354243633,1740361847312,-1304.83,0.00016438,2]
[354243634,1740361847321,-938.21,0.00016438,2]
[354243635,1740361847330,-503.77522089,0.00016438,2]
[354243636,1740361847339,-1121.19,0.00016438,2]
[354243637,1740361847348,-1127.71,0.00016438,2]
[354243638,1740361847357,-742.26,0.00016438,2]
[354243639,1740361847366,-579.1,0.00016438,2]
[354243640,1740361847375,-1328.56,0.00016438,2]
[354243641,1740361847385,-2127.62,0.00016438,2]
[354243642,1740361847395,-505.00071381,0.00016438,2]
[354243643,1740361847405,-2387.81,0.00016438,2]
[354243644,1740361847415,-500.0,0.00016438,2]
[354243645,1740361847424,-1023.81,0.00016438,2]
[354243646,1740361847434,-500.0,0.00016438,2]
[354243647,1740361847443,-3132.4,0.00016438,2]
[354243648,1740361847453,-1838.08,0.00016438,2]
[354243649,1740361847462,-500.0,0.00016438,2]
[354243650,1740361847471,-670.65,0.00016438,2]
[354243651,1740361847481,-736.03,0.00016438,2]
[354243652,1740361847490,-502.32103972,0.00016438,2]
[354243653,1740361847501,-1059.81,0.00016438,2]
[354243654,1740361847510,-500.0,0.00016438,2]
[354243655,1740361847519,-500.0,0.00016438,2]
[354243656,1740361847529,-722.91,0.00016438,2]
[354243657,1740361847538,-2514.53,0.00016438,2]
[354243658,1740361847547,-155.365745,0.00016438,2]
[354243659,1740361847557,-1397.25,0.00016438,2]
[354243660,1740361847566,-1622.97,0.00016438,2]
[354243661,1740361847575,-500.0,0.00016438,2]
[354243662,1740361847585,-1621.11,0.00016438,2]
[354243663,1740361847595,-1271.41,0.00016438,2]
[354243664,1740361847604,-500.0,0.00016438,2]
[354243665,1740361847614,-1726.96,0.00016438,2]
[354243666,1740361847623,-1328.26,0.00016438,2]
[354243667,1740361847632,-643.83,0.00016438,2]
[354243668,1740361847642,-4345.91,0.00016438,2]
[354243669,1740361847651,-500.0,0.00016438,2]
[354243670,1740361847661,-500.0,0.00016438,2]
[354243671,1740361847670,-1870.72,0.00016438,2]
[354243672,1740361847679,-1955.85,0.00016438,2]
[354243673,1740361847689,-896.81,0.00016438,2]
[354243674,1740361847698,-2032.04,0.00016438,2]
[354243675,1740361847707,-1434.64,0.00016438,2]
[354243676,1740361847717,-500.0,0.00016438,2]
[354243677,1740361847726,-500.0,0.00016438,2]
[354243678,1740361847735,-680.52,0.00016438,2]
[354243679,1740361847744,-898.78363333,0.00016438,2]
[354243683,1740362958571,3478.90599173,0.0002,120]
[354243684,1740362997879,610.60011111,0.0002,120]
[354243710,1740363032072,-220.85247496,0.00010858,2]
[354243712,1740363032081,-248.48174749,0.00010858,2]
[354243714,1740363032092,-500.0,0.00010883,2]
[354243716,1740363032102,-150.0,0.00010883,2]
[354243719,1740363032111,-199.67719,0.00010958,2]
[354243720,1740363032120,-160.331528,0.00010958,2]
[354243722,1740363032130,-150.336915,0.00010958,2]
[354243724,1740363032139,-160.331528,0.00010958,2]
[354243726,1740363032148,-160.331528,0.00010958,2]
[354243728,1740363032158,-83.05661555,0.00010958,2]
[354243731,1740363032169,-70.72028345,0.00010958,2]
[354243733,1740363032178,-158.723038,0.00010958,2]
[354243735,1740363032187,-66.62566838,0.00010958,2]
[354243736,1740363032198,-89.74889862,0.00010958,2]
[354243737,1740363032207,-200.243438,0.00010958,2]
[354243738,1740363032216,-150.605748,0.00010958,2]
[354243739,1740363032225,-260.475512,0.00010958,2]
[354243740,1740363032234,-105.59258368,0.00010958,2]
[354243741,1740363032245,-53.80974632,0.00010958,2]
[354243742,1740363032254,-167.641089,0.00010958,2]
[354243743,1740363032263,-192.065977,0.00010958,2]
[354243744,1740363032272,-200.243438,0.00011041,2]
[354243745,1740363032281,-260.475512,0.00011041,2]
[354243746,1740363032290,-200.243438,0.00011123,2]
[354243747,1740363032300,-260.475512,0.00011123,2]
[354243748,1740363032309,-200.243438,0.00011205,2]
[354243749,1740363032318,-96.08553085,0.00011205,2]
[354243750,1740363032334,-164.38998115,0.00011205,2]
[354243751,1740363032345,-200.243438,0.00011287,2]
[354243752,1740363032355,-260.475512,0.00011287,2]
[354243753,1740363032364,-200.243438,0.00011369,2]
[354243754,1740363032373,-260.475512,0.00011369,2]
[354243755,1740363032382,-500.0,0.00011944,2]
[354243756,1740363032391,-150.0,0.00011944,2]
[354243757,1740363032400,-500.0,0.00011944,2]
[354243758,1740363032409,-150.0,0.00011944,2]
[354243759,1740363032418,-550.0,0.00013,2]
[354243760,1740363032427,-1423.06,0.00013601,2]
[354243761,1740363032437,-150.0,0.00013667,2]
[354243762,1740363032446,-422.73204259,0.00013946,2]
[354243763,1740363032457,-433.68891129,0.00013946,2]
[354243764,1740363032468,-269.899992,0.00013946,2]
[354243765,1740363032490,-412.35905412,0.00013946,2]
[354243766,1740363032499,-1538.68,0.0001402,2]
[354243767,1740363032507,-250.0,0.00014025,2]
[354243768,1740363032517,-350.56,0.00014033,2]
[354243769,1740363032527,-1538.68,0.00014093,2]
[354243770,1740363032536,-223.44,0.00014096,2]
[354243771,1740363032544,-665.63,0.00014119,2]
[354243772,1740363032553,-1538.68,0.00014167,2]
[354243774,1740363032563,-1538.68,0.0001424,2]
[354243776,1740363032576,-1538.68,0.00014313,2]
[354243778,1740363032587,-1538.68,0.00014387,2]
[354243780,1740363032596,-3034.44902323,0.00014439,2]
[354243782,1740363032607,-26020.46097677,0.00014439,2]
[354243784,1740363032617,-1538.68,0.0001446,2]
[354243786,1740363032625,-1538.68,0.00014534,2]
[354243788,1740363032635,-1538.68,0.00014607,2]
[354243790,1740363032644,-1538.68,0.0001468,2]
[354243792,1740363032655,-1538.68,0.00014754,2]
[354243794,1740363032664,-1538.68,0.00014827,2]
[354243796,1740363032673,-1538.68,0.00014901,2]
[354243797,1740363032682,-2000.0,0.00014911,2]
[354243799,1740363032691,-150.0,0.00014918,2]
[354243801,1740363032700,-150.0,0.00014918,2]
[354243803,1740363032710,-1538.68,0.00014974,2]
[354243805,1740363032719,-600.0,0.00015,2]
[354243807,1740363032727,-1538.68,0.00015047,2]
[354243809,1740363032737,-1000.0,0.00015089,2]
[354243811,1740363032747,-1538.68,0.00015121,2]
[354243813,1740363032756,-5795.74716369,0.00015144,2]
[354243815,1740363032768,-1423.94,0.00015144,2]
[354243817,1740363032779,-5188.85335184,0.00015144,2]
[354243827,1740363032856,-11491.45948447,0.00015144,2]
[354243829,1740363032866,-1538.68,0.00015194,2]
[354243831,1740363032875,-505.22,0.00015218,2]
[354243833,1740363032885,-343.91,0.00015242,2]
[354243835,1740363032894,-1538.68,0.00015267,2]
[354243837,1740363032903,-1538.68,0.00015341,2]
[354243839,1740363032912,-799.45,0.00015375,2]
[354243841,1740363032921,-1500.0,0.00015405,2]
[354243843,1740363032931,-162.89,0.0001546,2]
[354243845,1740363032940,-991.48,0.00015559,2]
[354243847,1740363032949,-958.83,0.00015683,2]
[354243849,1740363032958,-152.83,0.00015834,2]
[354243851,1740363032967,-1423.06,0.00015865,2]
[354243853,1740363032976,-665.63,0.00015884,2]
[354243855,1740363032985,-300.0,0.000159,5]
[354243857,1740363032994,-11238.88,0.00016,3]
[354243859,1740363033004,-1003.78,0.000162,2]
[354243861,1740363033012,-617.13621075,0.00016238,2]
[354243889,1740363033271,-313.0516,0.00016238,2]
[354243892,1740363033281,-817.5513,0.00016238,2]
[354243894,1740363033291,-1564.9674,0.00016238,2]
[354243896,1740363033301,-353.0358272,0.00016267,2]
[354243898,1740363033311,-617.13621074,0.00016267,2]
[354243900,1740363033321,-617.13621074,0.00016296,2]
[354243902,1740363033331,-617.13621074,0.00016325,2]
[354243903,1740363033341,-332.86,0.00016328,2]
[354243905,1740363033351,-318.34306643,0.00016338,2]
[354243907,1740363033360,-1053.6601,0.00016338,2]
[354243909,1740363033370,-1000.0,0.00016338,2]
[354243911,1740363033379,-636.8491,0.00016338,2]
[354243913,1740363033389,-644.8836,0.00016338,2]
[354243915,1740363033399,-18238.7174,0.00016338,2]
[354243917,1740363033409,-2483.707,0.00016338,2]
[354243919,1740363033419,-72058.65191285,0.00016338,2]
[354243921,1740363033432,-12384.01451977,0.00016338,2]
[354243923,1740363033442,-7500.0,0.00016338,2]
[354243925,1740363033452,-30972.5185,0.00016338,2]
[354243927,1740363033462,-21446.7397,0.00016338,2]
[354243929,1740363033472,-700.0,0.000164,5]
[354243931,1740363033482,-1014.52,0.00016423,2]
[354243933,1740363033492,-273.35048992,0.00016428,2]
[354243935,1740363033502,-332.86,0.00016428,2]
[354243937,1740363033512,-468721.15524226,0.00016436,4]
[354243939,1740363033521,-20519.0,0.00016437,2]
[354243941,1740363033531,-4161.16137595,0.00016438,5]
[354243943,1740363033540,-502.27418276,0.00016438,2]
[354243945,1740363033550,-501.33684633,0.00016438,2]
[354243947,1740363033559,-500.63126954,0.00016438,2]
[354243949,1740363033572,-501.2645429,0.00016438,2]
[354243951,1740363033582,-501.2679247,0.00016438,2]
[354243953,1740363033593,-410.76514803,0.00016438,2]
[354243955,1740363033602,-500.4214189,0.00016438,2]
[354243957,1740363033612,-500.0,0.00016438,2]
[354243959,1740363033621,-500.0,0.00016438,2]
[354243961,1740363033631,-506.37127043,0.00016438,2]
[354243963,1740363033640,-505.18942687,0.00016438,2]
[354243965,1740363033652,-200.0,0.00016438,2]
[354243967,1740363033661,-504.36945538,0.00016438,2]
[354243969,1740363033671,-500.0,0.00016438,2]
[354243971,1740363033680,-532.38892779,0.00016438,2]
[354243973,1740363033689,-570.13218136,0.00016438,2]
[354243974,1740363033698,-505.7813697,0.00016438,2]
[354243976,1740363033708,-567.85,0.00016438,2]
[354243978,1740363033718,-500.0,0.00016438,2]
[354243980,1740363033727,-500.0,0.00016438,2]
[354243982,1740363033737,-368.40886664,0.00016438,2]
[354243984,1740363033747,-500.0,0.00016438,2]
[354243986,1740363033756,-505.85135316,0.00016438,2]
[354243988,1740363033765,-500.0,0.00016438,2]
[354243990,1740363033775,-776.61,0.00016438,2]
[354243992,1740363033784,-500.0,0.00016438,2]
[354243994,1740363033794,-506.00096275,0.00016438,2]
[354243996,1740363033803,-500.0,0.00016438,2]
[354243998,1740363033812,-500.0,0.00016438,2]
[354244000,1740363033822,-500.0,0.00016438,2]